[Event "Dutch Open 2022"]
[Site "Dieren"]
[Date "2022.07.26"]
[Round "1.17"]
[White "Vos, Tjark"]
[Black "Manukonda Arun"]
[Result "0-1"]
[ECO "B90"]
[WhiteElo "2224"]
[BlackElo "2021"]
[Annotator "TA"]
[PlyCount "90"]
[EventDate "2022.07.14"]
[EventType "swiss"]
[EventCountry "NED"]
[SourceTitle "playchess.com"]
[Source "ChessBase"]
[SourceQuality "1"]
[TimeControl "40/5400+30:1800+30"]

{[%evp 20,90,11,13,14,0,39,27,25,24,56,17,17,10,81,25,19,7,23,25,30,29,52,-24,-45,-75,-86,-65,-82,-388,9,20,13,20,14,4,14,20,10,10,22,15,10,21,18,0,0,-58,-50,-68,-4,-42,-22,-181,-54,-243,-222,-454,-222,-471,-468,-1772,-1773,-1961,-1716,-5812,-1756,-1445,-1126,-12833,-12835,-5916,-1529]} 1. e4 {[%emt 0:00:03]} c5 {[%emt 0:01:19]} 2. Nf3 {[%emt 0:00:06]} d6 {[%emt 0:00:02]} 3. d4 {[%emt 0:00:08]} cxd4 {[%emt 0:00:01]} 4. Nxd4 {[%emt 0:00:07]} Nf6 {[%emt 0:00:02]} 5. Nc3 {[%emt 0:00:08]} a6 {[%emt 0:00:03]} 6. Be3 {[%emt 0:00:05]} e5 {[%emt 0:00:04]} 7. Nb3 {[%emt 0:00:04]} Be7 {[%emt 0:00:06]} 8. f3 {[%emt 0:00:16]} Be6 {[%emt 0:00:21]} 9. Qd2 {[%emt 0:00:06]} h5 {[%emt 0:00:36]} 10. Nd5 {[%emt 0:00:21]} Nxd5 {[%emt 0:03:54]} 11. exd5 {[%emt 0:00:15]} Bf5 {[%emt 0:00:01] B90: Sicilian Najdorf: Unusual White 6th moves, 6 Be3 Ng4 and 6 Be3 e5.} 12. c4 {[%emt 0:01:50]} b6 {[%emt 0:16:03]} 13. Be2 {[%emt 0:01:41]} a5 {[%emt 0:00:12] White has an edge.} 14. O-O {[%emt 0:00:21]} Nd7 {[%emt 0:02:07]} 15. Rac1 {[%emt 0:01:29]} (15. f4 $5 {[%cal Rf4e5]}) 15... O-O {[%emt 0:03:16] [#]} 16. f4 $146 {[%emt 0:02:09]} ({Predecessor:} 16. Na1 Nc5 17. Nc2 g6 18. Na3 Bd7 19. Bd3 Bf6 20. f4 exf4 21. Bxf4 Nxd3 22. Qxd3 Bxb2 {0-1 (60) Brilej,J (2228)-Turzo,A (2303) Chess.com INT 2020}) 16... Bg4 {[%emt 0:02:29]} (16... a4 $1 $11 17. Na1 (17. fxe5 axb3 18. Rxf5 bxa2 $11) 17... exf4 18. Bxf4 Nc5) 17. Bd3 {[%emt 0:03:54]} ({White should try} 17. h3 $16 Bxe2 18. Qxe2) 17... a4 $11 {[%emt 0:01:10]} 18. Na1 {[%emt 0:00:09] Strongly threatening h3.} exf4 {[%emt 0:00:54]} 19. Bxf4 {[%emt 0:00:29]} Nc5 {[%emt 0:07:46]} 20. Bb1 {[%emt 0:09:56]} Bf6 {[%emt 0:04:35]} 21. Qc2 {[%emt 0:10:04]} (21. h3 $14 Bc8 22. Rcd1) 21... g6 {[%emt 0:01:40] Active counter play!} 22. Bh6 {[%emt 0:00:06]} Re8 {[%emt 0:05:49]} 23. Qf2 {[%emt 0:04:12]} Nd7 {[%emt 0:04:09] Threatens to win with ...Re2.} 24. Bg5 $2 {[%emt 0:31:08][%mdl 8192]} Re2 $2 {[%emt 0:09:36]} (24... Bxg5 $19 25. Qxf7+ Kh8 26. Qxg6 Qe7) 25. Bxf6 {[%emt 0:02:20]} Rxf2 {[%emt 0:00:52]} 26. Bxd8 {[%emt 0:00:02] This bishop pair is nice.} Rxf1+ {[%emt 0:00:06]} 27. Kxf1 {[%emt 0:00:07]} Rxd8 {[%emt 0:00:13]} 28. h3 {[%emt 0:00:02]} Bf5 {[%emt 0:00:17]} 29. Bxf5 {[%emt 0:00:04]} gxf5 {[%emt 0:00:02][%mdl 4096] Endgame KRN-KRN} 30. Nc2 {[%emt 0:00:36]} Kg7 {[%emt 0:10:57]} 31. Nd4 {[%emt 0:10:14]} Kf6 {[%emt 0:01:15]} 32. Nb5 {[%emt 0:03:58]} Nc5 {[%emt 0:03:03]} 33. Ke2 {[%emt 0:04:28]} (33. Kg1 $11) 33... Ke5 {[%emt 0:02:16]} 34. Kf3 {[%emt 0:02:32]} Nd3 {[%emt 0:09:46] Inhibits Re1+.} (34... Rg8 $1 $15 35. Nc3 (35. Re1+ $2 Ne4 $19) 35... Nd3) 35. Rb1 {[%emt 0:01:09]} (35. Rc3 $5 {[%cal Rc3d3]} Nxb2 36. Rc2 $11) 35... Rg8 {[%emt 0:02:23] aiming for ...h4.} 36. g3 {[%emt 0:03:45] [#]} (36. Rd1 $11 Nxb2 37. Re1+ Kf6 38. Nxd6) 36... h4 {[%emt 0:02:33]} (36... Nc5 $1 $19 {...Ne4 is the strong threat.} 37. Rg1 (37. Re1+ $2 Ne4 $19) 37... Ne4) 37. gxh4 $2 {[%emt 0:01:38]} (37. g4 $1 $15) 37... f4 $19 {[%emt 0:01:32]} 38. Nc3 $2 {[%emt 0:03:35]} (38. Ke2 {might work better.} Rg3 39. Rf1) 38... Rg3+ {[%emt 0:00:28]} 39. Ke2 {[%emt 0:00:04]} Nxb2 {[%emt 0:01:53][%mdl 64] Discovered Attack. Black is clearly winning.} 40. Rxb2 {[%emt 0:00:46] KRN-KR} (40. Kf2 $142 a3 41. Nb5 (41. Re1+ $2 Kf5 $19) 41... Nxc4 42. Rd1) 40... Rg2+ {[%emt 0:00:01][%mdl 64] [#] Skewer} 41. Kf3 {[%emt 0:30:29]} Rxb2 {[%emt 0:30:04]} 42. Nxa4 {[%emt 0:00:21]} Rb4 {[%emt 0:00:40]} (42... Rxa2 $142 43. Nxb6 Ra3+ 44. Kg2 f3+ 45. Kg3 Ke4) 43. Nc3 {[%emt 0:01:26]} Rxc4 {[%emt 0:00:36]} 44. Ne2 {[%emt 0:00:40]} Re4 {[%emt 0:01:45]} 45. h5 {[%emt 0:00:05]} Re3+ {[%emt 0:00:16] Weighted Error Value: White=1.16/Black=0.56} 0-1

[Event "Dutch Open 2022"]
[Site "Dieren"]
[Date "2022.07.26"]
[Round "1.18"]
[White "Achuthan, Dylan"]
[Black "Bruil, Rembrandt"]
[Result "0-1"]
[ECO "B06"]
[WhiteElo "1989"]
[BlackElo "2204"]
[Annotator "TA"]
[PlyCount "50"]
[EventDate "2022.07.14"]
[EventType "swiss"]
[EventCountry "NED"]
[SourceTitle "playchess.com"]
[Source "ChessBase"]
[SourceQuality "1"]
[TimeControl "40/5400+30:1800+30"]

{[%evp 10,50,35,20,44,22,42,37,55,56,53,18,18,5,8,-29,-28,-17,-14,-23,-31,-108,-88,-199,-145,-175,-177,-227,-179,-387,-377,-591,-612,-592,-600,-685,-684,-674,-664,-637,-607,-29986,-3299]} 1. e4 {[%emt 0:00:03]} g6 {[%emt 0:00:04]} 2. d4 {[%emt 0:00:37]} Bg7 {[%emt 0:00:04]} 3. Nc3 {[%emt 0:01:09]} d6 {[%emt 0:00:07]} 4. Be3 {[%emt 0:00:49]} a6 {[%emt 0:00:26]} 5. a4 {[%emt 0:03:36]} Nf6 {[%emt 0:04:31]} 6. f3 {[%emt 0:02:36]} Nbd7 {[%emt 0:05:41] Recently 6...Nc6 got a lot of attention. B06: Modern Defence.} 7. Bc4 {[%emt 0:03:56]} c6 {[%emt 0:02:51]} 8. Nge2 {[%emt 0:18:53] [#]} d5 $146 {[%emt 0:14:06] White is slightly better.} ({Predecessor:} 8... Qa5 9. O-O d5 10. Bb3 O-O 11. Qd2 dxe4 12. fxe4 e5 13. d5 Ng4 14. dxc6 bxc6 15. Nd5 Qd8 16. Bg5 Ngf6 17. Nxf6+ Bxf6 18. Bxf6 Nxf6 19. Qxd8 Rxd8 20. Rxf6 {1-0 (20) Schaberg,W (1808)-Ager,J (2147) Arco 2019}) 9. Bb3 {[%emt 0:13:19]} dxe4 {[%emt 0:05:24]} 10. fxe4 {[%emt 0:12:31] White wants to play e5.} Ng4 {[%emt 0:04:26]} 11. Bg5 {[%emt 0:07:29]} (11. Bg1 $5 {[%cal Rh2h3]}) 11... h6 {[%emt 0:01:47]} 12. Bc1 {[%emt 0:00:32] [#] Threatens to win with h3.} e5 $1 {[%emt 0:01:46] Strongly threatening ...exd4.} 13. O-O {[%emt 0:12:30]} O-O {[%emt 0:00:38] Hoping for ...exd4.} 14. h3 {[%emt 0:07:25]} exd4 {[%emt 0:01:17]} 15. hxg4 {[%emt 0:03:39]} (15. Nxd4 $15 Qb6 16. Nce2) 15... dxc3 {[%emt 0:00:21]} 16. Nxc3 {[%emt 0:01:29]} (16. bxc3 $17 {was the only defense.} Ne5 17. Qxd8 Rxd8 18. g5) 16... Qh4 {[%emt 0:07:42]} (16... Qe7 $19 {White must now prevent ...Nf6.} 17. g5 Ne5) 17. Bf4 {[%emt 0:02:59]} Nc5 {[%emt 0:05:50][%cal Bd7c5,Bc5e4,Be4f6,Bf6g4][%mdl 32]} 18. Bc4 {[%emt 0:02:08]} (18. Ba2 $142) 18... Bxg4 {[%emt 0:04:17]} 19. g3 $2 {[%emt 0:01:31]} (19. Qe1 Qh5 20. Qe3) 19... Qh3 $19 {[%emt 0:03:46]} ({Stronger than} 19... Bxd1 20. gxh4 Bxc2 21. Bd6 $17) 20. Be2 {[%emt 0:02:14]} (20. Qd2 {might work better.}) 20... Bxe2 {[%emt 0:00:11]} 21. Nxe2 {[%emt 0:00:19]} Rad8 {[%emt 0:00:44]} 22. Qc1 {[%emt 0:00:37]} Nxe4 {[%emt 0:00:27] [#] ( -> ...Rd5)} 23. Qe3 {[%emt 0:00:20]} Nf6 {[%emt 0:00:50] And now ...Ng4 would win.} 24. Qf3 {[%emt 0:00:45]} Rfe8 {[%emt 0:04:34]} 25. Nc3 {[%emt 0:01:02]} Ng4 {[%emt 0:00:24] Weighted Error Value: White=0.82/Black=0.11 (very precise)} 0-1

[Event "Dutch Open 2022"]
[Site "Dieren"]
[Date "2022.07.27"]
[Round "2.1"]
[White "Domalchuk-Jonasson, Aleksandr"]
[Black "Omelja, Artem"]
[Result "1-0"]
[ECO "E11"]
[WhiteElo "2244"]
[BlackElo "2478"]
[Annotator "TA"]
[PlyCount "79"]
[EventDate "2022.07.14"]
[EventType "swiss"]
[EventCountry "NED"]
[SourceTitle "playchess.com"]
[Source "ChessBase"]
[SourceQuality "1"]
[TimeControl "40/5400+30:1800+30"]

{[%evp 17,79,10,21,19,31,23,27,7,37,46,75,48,92,92,111,54,64,58,60,41,117,125,127,95,108,97,131,107,147,110,121,93,93,78,97,62,181,171,225,178,181,191,342,326,315,273,281,122,272,123,387,388,419,396,422,409,530,539,542,538,528,507,627,614]} 1. d4 {[%emt 0:00:06]} d5 {[%emt 0:00:16]} 2. c4 {[%emt 0:00:14]} e6 {[%emt 0:00:08]} 3. Nf3 {[%emt 0:00:17]} Nf6 {[%emt 0:00:11]} 4. g3 {[%emt 0:00:17]} Bb4+ {[%emt 0:00:42]} 5. Bd2 {[%emt 0:00:22]} Be7 {[%emt 0:00:09]} 6. Bg2 {[%emt 0:00:28]} O-O {[%emt 0:00:13]} 7. O-O {[%emt 0:00:21]} c6 {[%emt 0:01:10]} 8. Qc2 {[%emt 0:01:00]} Nbd7 {[%emt 0:00:26]} 9. Rd1 {[%emt 0:04:18]} Ne4 {[%emt 0:02:21]} 10. Bf4 {[%emt 0:06:25] E11: Bogo-Indian.} g5 {[%emt 0:01:56]} 11. Bc1 {[%emt 0:02:06]} f5 {[%emt 0:00:36]} 12. Nc3 {[%emt 0:04:54] Against b5. White has an edge.} Nd6 {[%emt 0:08:20]} 13. b3 {[%emt 0:10:33]} dxc4 {[%emt 0:09:37]} 14. Ne5 {[%emt 0:06:10]} cxb3 {[%emt 0:01:01]} 15. Qxb3 {[%emt 0:00:56]} (15. axb3 Nf7 $14) 15... Nb6 {[%emt 0:00:37] [#]} 16. a4 $146 {[%emt 0:12:51]} (16. e4 $1 $16) ({Predecessor:} 16. e4 fxe4 17. Nxe4 Nd5 18. Nc5 Qb6 19. Qc2 Qc7 20. Bh3 Nf5 21. Ne4 Nxd4 22. Rxd4 Qxe5 {1-0 (32) Pietsch,M (2206)-Schmidt Schaeffer,S (2373) Germany 2017}) 16... Nd5 $14 {[%emt 0:01:26]} 17. a5 {[%emt 0:03:37]} (17. Nxd5 exd5 18. e3 Nf7 $11) 17... a6 {[%emt 0:07:05]} 18. e4 {[%emt 0:09:19]} ({Much weaker is} 18. Nxd5 $6 exd5 19. Qf3 Bf6 $11) 18... fxe4 {[%emt 0:07:23]} ({Black should try} 18... Nxc3 $14 19. Qxc3 Nb5) 19. Nxe4 $16 {[%emt 0:01:13]} Kg7 {[%emt 0:00:42]} 20. Nc5 {[%emt 0:07:43][%mdl 1024] White has strong compensation.} Qc7 {[%emt 0:05:12]} 21. Bb2 {[%emt 0:02:13]} Rb8 {[%emt 0:06:25]} 22. Qd3 {[%emt 0:02:44]} Bf6 {[%emt 0:06:26]} 23. Qe2 {[%emt 0:03:53]} Kh8 {[%emt 0:04:21]} 24. Be4 {[%emt 0:03:13]} Qg7 {[%emt 0:02:04]} 25. Bd3 {[%emt 0:06:48] 0x0.00144ac411d7dp-1022s more active pieces.} Nf5 {[%emt 0:02:17]} 26. Rab1 {[%emt 0:02:09]} Qc7 {[%emt 0:04:49]} (26... Bd8 $14) 27. Qh5 $18 {[%emt 0:01:37] aiming for Ng6+.} Kg8 {[%emt 0:01:36]} (27... Qg7 {is a better defense.} 28. Ba3 Bxe5 29. dxe5 Qf7 30. Qxf7 Rxf7) 28. Ne4 {[%emt 0:03:08] Strongly threatening Ba3.} Qg7 {[%emt 0:00:21]} 29. Ba3 {[%emt 0:00:46]} Nxd4 {[%emt 0:01:31]} (29... Be7) 30. Bxf8 {[%emt 0:01:08]} Kxf8 {[%emt 0:00:37] [#]} 31. Nd6 $1 {[%emt 0:01:49][%csl Gd6][%cal Rh5e8]} Qe7 {[%emt 0:02:39] Against Qe8+} 32. Nef7 {[%emt 0:01:50]} (32. Bxh7 $2 Bxe5 33. Ne4 Nf6 34. Nxf6 (34. Qh6+ $2 Qg7 $19) 34... Bxf6 $19) (32. Ndf7 $18) 32... Bd7 {[%emt 0:08:28]} (32... e5 $16 {was called for.}) 33. Qxh7 $40 {[%emt 0:00:59][%mdl 128] White goes for the king.} (33. Bxh7 $18 {and White stays clearly on top. Threatens to win with Qg6.} Nc3 {[#]} 34. Rd3 $1 Nxb1 35. Qg6) 33... Be8 $2 {[%emt 0:00:20][%mdl 8192]} (33... Nc3 $16 {was worth a try.}) 34. Bg6 {[%emt 0:00:58]} ({Wrong is} 34. Qh6+ $2 Bg7 35. Qg6 Bxf7 $19) 34... Nf3+ {[%emt 0:01:28]} 35. Kg2 {[%emt 0:00:15] Really sharp!} Ne5 {[%emt 0:01:10][%cal Re8f7]} 36. Nxe8 {[%emt 0:00:57]} ({Not} 36. Qh6+ Bg7 37. Qxg5 Bxf7 38. Nxf7 Nxg6 39. Qxg6 Qxf7 40. Qxf7+ Kxf7 $17) 36... Nxg6 {[%emt 0:03:34]} 37. Nxf6 {[%emt 0:00:40] White is clearly winning.} Qxf6 {[%emt 0:01:43]} 38. Nd6 {[%emt 0:00:25]} Ne5 {[%emt 0:10:10][%cal Od5e3]} 39. Rb3 {[%emt 0:00:33] Prevents Ne3+.} Rd8 {[%emt 0:00:00]} 40. Ne4 {[%emt 0:00:37] Weighted Error Value: White=0.23 (precise) /Black=0.44} 1-0

[Event "Dutch Open 2022"]
[Site "Dieren"]
[Date "2022.07.27"]
[Round "2.2"]
[White "Lahaye, Rick"]
[Black "Stillger, Bernhard"]
[Result "1-0"]
[ECO "B14"]
[WhiteElo "2417"]
[BlackElo "2245"]
[Annotator "TA"]
[PlyCount "88"]
[EventDate "2022.07.14"]
[EventType "swiss"]
[EventCountry "NED"]
[SourceTitle "playchess.com"]
[Source "ChessBase"]
[SourceQuality "1"]
[TimeControl "40/5400+30:1800+30"]

{[%evp 19,88,-27,0,0,16,6,14,0,29,26,40,12,41,41,38,21,27,0,0,0,0,0,39,28,32,25,23,24,33,0,0,0,246,9,6,0,211,72,59,45,57,50,50,45,78,81,94,113,106,83,103,110,138,143,147,111,993,893,962,954,1421,1429,1402,1383,1338,1283,29993,29994,29994,29995,29995]} 1. e4 {[%emt 0:00:02]} c6 {[%emt 0:15:26]} 2. d4 {[%emt 0:02:35]} d5 {[%emt 0:01:21]} 3. exd5 {[%emt 0:00:06]} cxd5 {[%emt 0:00:49]} 4. c4 {[%emt 0:00:06]} Nf6 {[%emt 0:00:13]} 5. Nc3 {[%emt 0:00:08]} g6 {[%emt 0:01:15]} 6. Qb3 {[%emt 0:01:14]} Bg7 {[%emt 0:00:12]} 7. cxd5 {[%emt 0:00:51]} O-O {[%emt 0:00:25]} 8. Nf3 {[%emt 0:03:33]} Nbd7 {[%emt 0:10:47][%cal Bb8d7,Bd7b6,Bb6d5][%mdl 32]} 9. Be2 {[%emt 0:10:35]} Nb6 {[%emt 0:01:40]} 10. O-O {[%emt 0:00:45]} Nbxd5 {[%emt 0:01:08]} 11. Re1 {[%emt 0:02:23] B14: Caro-Kann: Panov-Botvinnik Attack with 5...e6 and 5...g6.} b6 {[%emt 0:02:07]} 12. Ne5 {[%emt 0:11:45]} Bb7 {[%emt 0:02:55] Against Nc6} 13. Bf3 {[%emt 0:00:14] [#] The position is equal.} e6 $146 {[%emt 0:10:25]} ({Predecessor:} 13... h6 14. Bd2 Rc8 15. Rad1 e6 16. Bc1 a6 17. h4 b5 18. Na4 Nd7 19. Nxd7 Qxd7 {0-1 (43) Kraai,J (2429)-Lobanov,S (2516) Chess.com INT 2020}) 14. Bg5 {[%emt 0:00:19]} Rc8 {[%emt 0:06:54]} 15. Rac1 {[%emt 0:06:11]} Qd6 {[%emt 0:10:10]} 16. Nb5 {[%emt 0:10:17][%csl LRa7,LRd6]} Qb8 {[%emt 0:00:45]} 17. Rxc8 {[%emt 0:08:12]} Rxc8 {[%emt 0:10:28]} 18. Bxf6 {[%emt 0:00:11]} Bxf6 {[%emt 0:00:30]} 19. Nd7 {[%emt 0:00:07] Pair of Knights!} Qf4 {[%emt 0:00:27]} 20. Nxf6+ {[%emt 0:11:36]} Qxf6 {[%emt 0:00:28]} 21. Nd6 {[%emt 0:00:31]} Rb8 {[%emt 0:00:27]} 22. Nxb7 {[%emt 0:05:35]} Rxb7 {[%emt 0:00:03]} 23. Bxd5 {[%emt 0:00:07]} exd5 $14 {[%emt 0:00:05][%mdl 4096] Endgame KQR-KQR} 24. Re8+ {[%emt 0:02:34]} Kg7 {[%emt 0:00:09]} 25. Qa3 {[%emt 0:00:08][%csl Ge8][%cal Ra3f8]} Kh6 $2 {[%emt 0:05:58]} (25... h5 $1 $11 {and Black has nothing to worry.}) 26. Qh3+ $2 {[%emt 0:13:33]} (26. g4 $1 $18 Qf4 27. Qf8+ Kg5 28. Re3) 26... Kg7 $11 {[%emt 0:00:23]} 27. Qa3 $2 $40 {[%emt 0:00:03][%mdl 128] White is up to no good.} (27. Qc8 $11 Re7 28. Rg8+ Kh6 29. Qh3+ Kg5 30. Qg3+ Kh6 31. Qh3+ Kg5 32. Qg3+ Kh6 33. Qh3+) 27... Kh6 $18 {[%emt 0:00:13] [#]} 28. Qf8+ {[%emt 0:00:04]} (28. g4 $1 $18 {is the precise move to win. Strongly threatening Qf8+.} Qf4 29. Qf8+ Kg5 30. Re5+ Kh4 31. h3 Kxh3 32. Re3+ Kh4 33. g5 (33. Qd8+ f6 $11)) 28... Qg7 $16 {[%emt 0:01:16]} 29. Qb4 {[%emt 0:00:08]} f6 $1 {[%emt 0:06:05]} 30. Qd2+ {[%emt 0:04:14]} g5 {[%emt 0:00:16]} 31. Qe3 {[%emt 0:00:12] Prevents Re7.} Qg6 {[%emt 0:04:37]} 32. h4 $1 {[%emt 0:00:41]} Kg7 {[%emt 0:02:59]} 33. hxg5 {[%emt 0:00:57] White is more active.} Qxg5 {[%emt 0:00:07]} 34. Qc3 {[%emt 0:01:41] Against Rc7. aiming for Re3.} Qf5 {[%emt 0:05:38]} 35. Re3 {[%emt 0:01:31]} Kf7 {[%emt 0:00:41] [#]} 36. Rf3 $1 {[%emt 0:00:44]} ({Much worse is} 36. Qc6 $6 Re7 $11) 36... Qe6 {[%emt 0:00:30]} 37. Qc2 {[%emt 0:00:48]} Qe1+ $2 {[%emt 0:00:18][%mdl 8192] Loses the game.} (37... Kg7 $16) 38. Kh2 $18 {[%emt 0:00:07]} Qe4 {[%emt 0:00:18]} 39. Qc6 $1 {[%emt 0:00:11][%csl LRb7,LRf6]} Qh4+ {[%emt 0:00:21]} 40. Rh3 {[%emt 0:03:21]} Qf4+ {[%emt 0:00:07]} 41. Kg1 {[%emt 0:30:01]} Rb8 {[%emt 0:08:41]} 42. Qd7+ {[%emt 0:00:00]} Kf8 {[%emt 0:00:16]} 43. Rxh7 {[%emt 0:00:00][%cal Rh7h8]} Qc1+ {[%emt 0:00:12]} 44. Kh2 {[%emt 0:00:00][%cal Rh7h8]} Qf4+ {[%emt 0:00:07] Weighted Error Value: White=0.20 (precise) /Black=0.61} 1-0